Cogmind - Beta 11 X6 @@@ ROGUE MODE // 2021.08.01 @ 19:06:22 Player: Luigi Panache Result: Destroyed by S-10 Pest with Light Assault Rifle Performance ------------- Evolutions (0) 0 Regions Visited (2) 400 Robots Destroyed (0) 0 Value Destroyed (0) 0 Prototype IDs (0) 0 Alien Tech Used (0) 0 Bonus (0) 0 TOTAL SCORE: 400 Bonus ------- None Cogmind --------- Core Integrity 0/250 Matter 284/300 Energy 99/100 System Corruption 0% Temperature Cool (0) Movement Core (50) Location -10/Mines Parts ------- > --- POWER (1) -------- (None) > --- PROPULSION (2) --- (None) > --- UTILITY (2) ------ Machine Analyzer Advanced Targeting Computer > --- WEAPON (2) ------- (None) > --- INVENTORY (5) ---- Experimental Sensor Array Peak State ------------ > --- POWER ------------ (None) > --- PROPULSION ------- (None) > --- UTILITY ---------- Machine Analyzer Advanced Targeting Computer > --- WEAPON ----------- (None) > --- INVENTORY -------- (None) [Rating: 6] Favorites ----------- Power None Propulsion None Utility Machine Analyzer Processor Machine Analyzer Weapon None Build | -11 -10 -10 ------- Run | Scr Mat Min Slots Evolved . | . . . Power . | . . . Propulsion . | . . . Utility . | . . . Weapon . | . . . Parts Attached 2 | . . 2 Power . | . . . Engine . | . . . Core . | . . . Reactor . | . . . Propulsion . | . . . Treads . | . . . Leg . | . . . Wheel . | . . . Hover . | . . . Flight . | . . . Utility 2 | . . 2 Device . | . . . Storage . | . . . Processor 2 | . . 2 Hackware . | . . . Protection . | . . . Artifact . | . . . Weapon . | . . . Energy Gun . | . . . Energy Cannon . | . . . Ballistic Gun . | . . . Ballistic Cannon . | . . . Launcher . | . . . Special Weapon . | . . . Impact Weapon . | . . . Slashing Weapon . | . . . Piercing Weapon . | . . . Special Melee Weapon . | . . . Unidentified Prototypes . | . . . Parts Lost . | . . . Power . | . . . Propulsion . | . . . Utility . | . . . Weapon . | . . . Highest Loss Streak . | . . . Average Slot Usage (%) 14 | . . 15 Processor 14 | . . 15 Naked Turns 56 | . 14 42 Heaviest Build . | . . . Greatest Support 3 | 3 3 3 Greatest Overweight (x) . | . . . Average Overweight (x) . | . . . Largest Inventory Capacity 5 | 5 5 5 Average Capacity 5 | 5 5 5 Most Carried 1 | . . 1 Average Carried . | . . . Final Capacity 5 | 5 5 5 Final Carried 1 | . . 1 Class Distribution -------------------- 100% | Mutant Dominant Class ---------------- Mutant | -10/Materials Mutant | -10/Mines Resources | -11 -10 -10 ----------- Run | Scr Mat Min Matter Collected 200 | 200 . . Remotely . | . . . Salvage Created . | . . . Parts . | . . . Haulers Intercepted . | . . . Recyclers Shooed . | . . . Parts Field Recycled . | . . . Retrieved Matter . | . . . Parts Self-Destructed . | . . . Prevented . | . . . Kills | -11 -10 -10 ------- Run | Scr Mat Min Combat Hostiles Destroyed . | . . . Classes Destroyed . | . . . Best Kill Streak . | . . . Combat Bots Only . | . . . Max Kills in Single Turn . | . . . Gunslinging . | . . . Exploded . | . . . Melee . | . . . Uniques/NPCs Destroyed . | . . . Combat | -11 -10 -10 -------- Run | Scr Mat Min Damage Taken 253 | . . 253 Core 253 | . . 253 Absorbed by Shields . | . . . Core Remaining (%) 100 | 100 . . Volleys Fired . | . . . Largest . | . . . Hottest . | . . . Shots Fired . | . . . Gun . | . . . Cannon . | . . . Launcher . | . . . Special . | . . . Kinetic . | . . . Thermal . | . . . Explosive . | . . . Electromagnetic . | . . . Robot Hit Streak . | . . . Robot Miss Streak . | . . . Penetration Max . | . . . Secondary Targets . | . . . Shots Hit Robots . | . . . Core Hits . | . . . Critical Kills . | . . . Critical Parts Destroyed . | . . . Critical Strikes . | . . . Melee Attacks . | . . . Impact . | . . . Slashing . | . . . Piercing . | . . . Sneak Attacks . | . . . Combat Hostiles . | . . . Follow-up Attacks . | . . . Damage Inflicted 2 | . . 2 Guns . | . . . Cannons . | . . . Explosions . | . . . Melee . | . . . Ramming 2 | . . 2 Kinetic . | . . . Thermal . | . . . Explosive . | . . . Electromagnetic . | . . . Impact . | . . . Slashing . | . . . Piercing . | . . . Highest Corruption . | . . . Average Corruption . | . . . Corruption Purged . | . . . Overload Shots . | . . . Overflow Damage . | . . . Projectiles . | . . . Explosions . | . . . Melee . | . . . Knockbacks . | . . . Impact . | . . . Kinetic . | . . . Secondary . | . . . Self-Inflicted Damage 1 | . . 1 Shots . | . . . Rammed 1 | . . 1 Targets Rammed 1 | . . 1 Kicked . | . . . Crushed . | . . . Highest Temperature . | . . . Average Temperature . | . . . Received Heat Transfer 9 | . . 9 Siege Activations . | . . . Robots Corrupted . | . . . Combat Hostiles . | . . . Parts Fried . | . . . Impact Corruptions . | . . . Robots Melted . | . . . Combat Hostiles . | . . . Parts Melted . | . . . Heat Transferred . | . . . Parts Sabotaged . | . . . Parts Stolen . | . . . Parts Stripped . | . . . Power Chain Reactions . | . . . Missiles Intercepted . | . . . Alert | -11 -10 -10 ------- Run | Scr Mat Min Peak Influence 228 | . 8 228 Initial 3 | . . 3 Average 77 | . 5 97 Maximum Alert Level 1 | . . 1 Low Security (%) 96 | 100 100 95 Level 1 3 | . . 4 Level 2 . | . . . Level 3 . | . . . Level 4 . | . . . Level 5 . | . . . High Security . | . . . Max Security . | . . . Squads Dispatched 1 | . . 1 Investigation 1 | . . 1 Extermination . | . . . Reinforcement . | . . . Assault . | . . . Garrison . | . . . Intercept . | . . . Construction Impeded . | . . . Haulers Reinforced . | . . . Active Scanning Responses . | . . . Cargo Convoy Interrupts . | . . . Stealth | -11 -10 -10 --------- Run | Scr Mat Min Distress Signals . | . . . Communications Jammed . | . . . Distress Signals . | . . . Times Spotted 15 | . . 15 Peak Tracking Total 8 | . . 8 Tactical Retreats 5 | . . 5 Traps | -11 -10 -10 ------- Run | Scr Mat Min Traps Triggered . | . . . Indirectly . | . . . Trap Hack Attempts . | . . . Triggered . | . . . Disarmed . | . . . Reprogrammed . | . . . Reused . | . . . Traps Extracted . | . . . Installed . | . . . Triggered . | . . . Machines | -11 -10 -10 ---------- Run | Scr Mat Min Machines Disabled . | . . . Max in Single Turn . | . . . Machines Sabotaged . | . . . Garrisons Compromised . | . . . Overloaded Fab Kills . | . . . Fab Network Shutdowns . | . . . Hacking | -11 -10 -10 --------- Run | Scr Mat Min Machines Accessed 2 | . 1 1 Terminals 1 | . 1 . Fabricators . | . . . Repair Stations . | . . . Recycling Units . | . . . Scanalyzers . | . . . Garrison Access . | . . . Total Hacks 2 | . 1 1 Successful 2 | . 1 1 Failed . | . . . Catastrophic . | . . . Database Lockouts . | . . . Manual 1 | . 1 . Terminals 1 | . 1 . Fabricators . | . . . Repair Stations . | . . . Recycling Units . | . . . Scanalyzers . | . . . Garrison Access . | . . . Terminal Hacks 2 | . 1 1 Open Door 1 | . . 1 Branch Access Points 1 | . 1 . Fabricator Hacks . | . . . Repair Station Hacks . | . . . Recycling Unit Hacks . | . . . Scanalyzer . | . . . Garrison Access Hacks . | . . . Unauthorized Hacks . | . . . Terminals . | . . . Fabricators . | . . . Repair Stations . | . . . Recycling Units . | . . . Scanalyzers . | . . . Garrison Access . | . . . Data Cores Recovered . | . . . Used . | . . . Hacking Detections . | . . . Full Trace Events . | . . . Feedback Events . | . . . Feedback Blocked . | . . . Robot Schematics Acquired . | . . . Robots Built . | . . . Matter . | . . . Time . | . . . Total Robot Build Rating . | . . . Part Schematics Acquired . | . . . Parts Built . | . . . Matter . | . . . Time . | . . . Total Part Build Rating . | . . . Parts Repaired . | . . . Time . | . . . Parts Recycled . | . . . Recycled Matter . | . . . Retrieved Matter . | . . . Retrieved Components . | . . . Parts Scanalyzed . | . . . Part Schematics Acquired . | . . . Parts Damaged . | . . . Bothacking | -11 -10 -10 ------------ Run | Scr Mat Min Used RIF Installer . | . . . Robots Hacked . | . . . Non-combat . | . . . Combat . | . . . Robot Hacks Applied . | . . . Relay Couplers Released . | . . . Robots Rewired . | . . . Allies Hacked . | . . . Hacks Repelled . | . . . Allies | -11 -10 -10 -------- Run | Scr Mat Min Total Allies . | . . . Largest Group . | . . . Highest-Rated Group . | . . . Highest-Rated Ally . | . . . Total Orders . | . . . Ally Attacks . | . . . Total Damage . | . . . Kills . | . . . Allies Corrupted . | . . . Allies Melted . | . . . Intel | -11 -10 -10 ------- Run | Scr Mat Min Robot Analysis Total . | . . . Derelict Logs Recovered . | . . . Drone Launches . | . . . Drone Recoveries . | . . . Exploration | -11 -10 -10 ------------- Run | Scr Mat Min Turns Passed 125 | 12 14 99 Spaces Moved 239 | 25 27 187 Core 239 | 25 27 187 Treads . | . . . Legs . | . . . Wheels . | . . . Hover . | . . . Flight . | . . . Fastest Speed 50 | 50 50 50 Average Speed 50 | 50 50 50 Slowest Speed 50 | 50 50 50 Overloaded Moves . | . . . Propulsion Burnouts . | . . . Robots Hopped . | . . . Cave-ins Triggered . | . . . Exploration Rate (%) 22 | 3 11 53 Regions Visited 2 Branch Regions 1 Pre-discovered Areas . | . . . Known Exits Taken 1 | . 1 . Unknown Exits Taken 1 | 1 . . Scrap Searched 1 | . . 1 Spaces Dug . | . . . Terrain Destroyed . | . . . Melee . | . . . Projectile . | . . . AOE . | . . . Terrain Rammed . | . . . Walls Destroyed . | . . . Machines Disabled . | . . . Actions | -11 -10 -10 --------- Run | Scr Mat Min Total 241 | 24 26 191 Wait . | . . . Move 237 | 24 26 187 Hop . | . . . Pick Up 1 | . . 1 Fast Attach 2 | . . 2 Attach . | . . . Detach . | . . . Swap . | . . . Drop . | . . . Fire . | . . . Melee . | . . . Ram 1 | . . 1 Kick . | . . . Crush . | . . . Escape Stasis . | . . . Rewire . | . . . Trap . | . . . Miscellaneous . | . . . Route ------- -11/Scrapyard -10/Materials -10/Mines (discovered 1 exit: [*Mat]) History --------- Turn | Location | Event 3 | -11/Scrapyard | Discovered new exit (range 16) 13 | -11/Scrapyard | Entered Materials 17 | -10/Materials | Identified exit to Mines 27 | -10/Materials | Entered Mines 68 | -10/Mines | Met a Derelict shopkeep closing up shop 75 | -10/Mines | Core integrity fell below 50% 117 | -10/Mines | Core integrity fell below 20% 120 | -10/Mines | Found a damaged Exp. Sensor Array with a note attached 121 | -10/Mines | Found Prototype Device 125 | -10/Mines | Discovered new exit (range 9) 126 | -10/Mines | Destroyed by S-10 Pest with Light Assault Rifle Last Messages --------------- 00072_ 7U-R4S(g): "Well, take what you want I guess, I've had enough of this place!" 00072_ Machine disabled. 00073_ Slammed into S-10 Pest. 00095_ T-07 Excavator is excavating. 00106_ S-10 Pest destroyed. 00120_ A damaged part is partially visible under some rubble. There's a note attached: "Everyone keeps telling us we should avoid high-traffic areas because that's where patrols are more likely to show up, but that doesn't do us much good if we can't spot those areas until they're on top of us... With this we can! Deliver it to Megawrench for repairs then we'll never be afraid of an ambush while sneaking around Materials again, ha." 00121_ Acquired Prototype Device. 00125_ Searching scrap... 00125_ Found Med. Matter Pod. 00125_ Found Flight Unit. 00125_ Found Med. Laser. 00125_ Found 26 Matter. 00125_ EXIT=FOUND Map ----- +----------------------------------------------------+ | | | | | | | | | | | ?????????????????????????????????? | | ?????????????????????????????????? | | #??#######???????????????????????? | | ### ##??????????????????????? | | ##??##?????????????????? | | ### ##????????????????? | | #????????????????? | | #????????????????? | | ######???????????? | | ## ## ##??????????? | | ???## ## ##?????????? | | ????# ### #?????????? | | ????# #?# #?????????? | | ????# #?## ####???????? | | ##### #??## ## ????????? | | #???# ## ## #????????? | | ######### ## ## ###??????? | | #????# = #??????? | | #????# ## %! #??????? | | #????#??## ####[ #??????? | | ####?????### #??# @#??????? | | #???????## ##??# #??????? | | ## #????## ##??# ss ??????? | | #??##?##?????####???# s ?????? | | #???????????????????# ????? | | #???????????????????# < ???? | | ##??????????????????# ??? | | %[ ##?????????????????#########??? | | ##???????????????????????????? | | #???????????????????????????? | | #???????????????????????????? | | ##???????????????????????????? | | ##????????????????????????????? | | ##?????????????????????????????? | | ###??????????????????????????????? | | ?????????????????????????????????? | | ?????????????????????????????????? | | ?????????????????????????????????? | | ?????????????????????????????????? | | ?????????????????????????????????? | | ?????????????????????????###?????? | | ????????????????????????? #?????? | | ???????#######??????????? #?????? | | ???????# #??????????? #?????? | | ???????# #??????????? #?????? | +----------------------------------------------------+ Best States ------------- Heat Dissipation 25 Energy Generation 5 Energy Capacity 100 Matter Stores 300 Matter Capacity 300 Sight Range 16 Terrain Scan Density 10 Evasion (%) 50 Targeting Accuracy 8 Item Schematics ----------------- None Robot Schematics ------------------ None Fabricated ------------ Nothing Alien Tech Used ----------------- None Achievements -------------- None Challenges ------------ None Game ------ Seed BarrageDeuteriumImmobilizer Manual? 0 Play Time 00:03:23 Cumulative 402.5 hours Start 2021.08.01 @ 19:03:36 End 2021.08.01 @ 19:06:22 Sessions 1 Manual Loads 0 Difficulty Rogue Special Mode None Game No. 381 Rogue 166 Adventurer 112 Explorer 103 Win Type - Total 29 Types 21/0/5/2/0/0/0/1/0 Lore% 85 Gallery% 90 Achievement% 76 Wizard Run 0 Options --------- ASCII 0 Keyboard 0 Movement Numpad Keybinds 0 Fullscreen 2 Font 18/TerminusBold Map View 76x50 Tactical HUD 1 Map Filters NONE Filters NONE Steam 1 RUN: 68bd21d3-c44b-4c5f-9dad-e416c85dec7f